bitfinex/quotes_SOLUSD_20240816
["timestamp","ask_amount","ask_price","bid_price","bid_amount"]
[1723828808378,7.2917,137.15,137.1,68.8695]
[1723828808588,7.2927,137.13,137.1,61.5757]
[1723828809369,18.2259,137.17,137.07,7.2952]
[1723828809548,18.229,137.15,137.06,42.1108]
[1723828809761,18.229,137.15,137.07,45.0]
[1723828809973,18.229,137.15,137.06,42.1108]
[1723828810483,6.1628,137.13,137.03,15.518]
[1723828810770,15.304,137.12,137.01,6.005]
[1723828810973,18.2356,137.1,137.01,6.005]
[1723828812365,18.2356,137.1,137.02,45.0]
[1723828812556,7.2964,137.06,137.02,45.0]
[1723828812950,36.469,137.11,137.01,6.005]
[1723828813280,36.469,137.11,136.96,36.5065]
[1723828813281,7.2987,137.01,136.98,6.005]
[1723828815374,7.2993,137.0,136.98,6.005]
[1723828815577,7.2998,136.99,136.97,400.3512]
[1723828815883,7.2994,137.0,136.97,400.3512]
[1723828816295,18.2446,137.03,136.93,15.7099]
[1723828816589,18.2472,137.01,136.93,15.7099]
[1723828816759,18.2501,136.99,136.91,7.63464628]
[1723828816967,6.0783,137.03,136.86,15.7099]
[1723828817271,65.0,137.02,136.86,15.7099]
[1723828817470,7.3047,136.9,136.86,15.7099]
[1723828817671,7.3041,136.91,136.86,23.0165]
[1723828819080,18.2569,136.94,136.86,15.7099]
[1723828819592,18.2569,136.94,136.85,0.8147396]
[1723828819776,6.0783,136.96,136.85,0.8147396]
[1723828819777,7.3065,136.87,136.85,0.8147396]
[1723828820173,7.3067,136.86,136.85,0.8147396]
[1723828820910,24.3408,136.9,136.85,0.8147396]
[1723828820911,7.3057,136.88,136.85,0.8147396]
[1723828821903,24.7272,136.93,136.85,0.8147396]
[1723828821904,7.3062,136.87,136.85,0.8147396]
[1723828822104,29.48059414,136.95,136.85,0.8147396]
[1723828822309,18.2568,136.94,136.85,0.8147396]
[1723828822676,7.306,136.88,136.85,0.8147396]
[1723828822884,18.2568,136.94,136.85,0.8147396]
[1723828823902,7.3051,136.89,136.85,8.1219396]
[1723828824476,7.3047,136.9,136.85,8.1219396]
[1723828825003,18.2568,136.94,136.85,0.8147396]
[1723828825173,18.2568,136.94,136.85,45.8147396]
[1723828825369,7.3058,136.88,136.85,45.8147396]
[1723828825605,7.3058,136.88,136.85,0.8147396]
[1723828825807,7.3062,136.87,136.85,0.8147396]
[1723828826702,7.3067,136.86,136.85,0.8147396]
[1723828826909,18.265,136.88,136.79,7.63898437]
[1723828827229,18.265,136.88,136.78,24.8738]
[1723828827387,6.5759,136.86,136.72,143.09730819]
[1723828827588,7.3136,136.73,136.72,143.09730819]
[1723828827773,6.5759,136.78,136.7,0.149]
[1723828827774,43.1312,136.78,136.7,0.149]
[1723828828088,7.3163,136.68,136.63,15.9909]
[1723828828290,7.3163,136.68,136.62,153.7818343]
[1723828829128,7.3163,136.68,136.67,149.8082084]
[1723828830207,18.2894,136.7,136.66,12.71772356]
[1723828830511,18.2894,136.7,136.65,0.04160985]
[1723828830512,7.3174,136.66,136.65,0.04160985]
[1723828830714,7.319,136.63,136.62,153.7818343]
[1723828831045,7.3185,136.64,136.62,153.7818343]
[1723828831249,39.57360711,136.74,136.62,153.7818343]
[1723828831250,18.2867,136.72,136.62,153.7818343]
[1723828831834,18.2894,136.7,136.62,153.7818343]
[1723828832059,7.319,136.63,136.62,153.7818343]
[1723828832227,7.3174,136.66,136.62,153.7818343]
[1723828832436,7.63205284,136.73,136.62,153.7818343]
[1723828832742,7.3168,136.68,136.62,161.1008343]
[1723828832953,36.547,136.82,136.63,18.2974]
[1723828833240,46.23982418,136.78,136.66,18.2935]
[1723828833566,7.63493282,136.77,136.67,45.0]
[1723828833838,7.63493282,136.77,136.64,7.318]
[1723828834229,18.2828,136.75,136.65,45.0]
[1723828834537,7.63493282,136.77,136.62,153.7818343]
[1723828834538,18.2853,136.73,136.62,153.7818343]
[1723828835027,18.2853,136.73,136.62,161.1009343]
[1723828835219,7.3162,136.69,136.62,153.7818343]
[1723828835426,7.3142,136.73,136.68,7.3162]
[1723828835635,18.2804,136.76,136.65,19.02569656]
[1723828836306,7.3163,136.68,136.65,0.73179656]
[1723828836848,18.2866,136.72,136.65,0.73179656]
[1723828837726,18.282,136.75,136.65,0.73179656]
[1723828838312,7.3154,136.7,136.65,8.04959656]
[1723828839015,18.282,136.75,136.65,0.73179656]
[1723828839230,7.3157,136.7,136.65,8.04969656]
[1723828839444,7.3159,136.69,136.65,0.73179656]
[1723828839740,18.2852,136.73,136.65,0.73179656]
[1723828840047,36.5657,136.75,136.65,0.73179656]
[1723828840225,7.3174,136.66,136.65,0.73179656]
[1723828842742,7.319,136.63,136.62,153.7818343]
[1723828844045,7.3186,136.64,136.62,153.7818343]
[1723828844547,7.319,136.63,136.62,153.7818343]
[1723828845317,7.3186,136.64,136.62,153.7818343]
[1723828845532,18.2917,136.68,136.62,153.7818343]
[1723828845864,7.319,136.63,136.62,153.7818343]
[1723828846147,7.3186,136.64,136.62,153.7818343]
[1723828846657,7.6224041,136.69,136.62,153.7818343]
[1723828846956,15.7411,136.74,136.68,7.3163]
[1723828846957,6.3803,136.74,136.68,7.3163]
[1723828847261,7.3153,136.7,136.64,18.2953]
[1723828847821,7.3164,136.68,136.64,18.2953]
[1723828848023,18.2854,136.73,136.64,18.2953]
[1723828848024,7.3154,136.7,136.64,18.2953]
[1723828848571,18.2807,136.76,136.66,18.293]
[1723828848879,7.3143,136.72,136.68,7.316]
[1723828849043,7.3143,136.72,136.67,7.3167]
[1723828850447,7.61803701,136.77,136.66,20.0]
[1723828850672,7.3116,136.77,136.72,7.314]
[1723828850980,7.3116,136.77,136.73,7.3135]
[1723828851182,32.4111842,136.82,136.67,45.25098]
[1723828851183,7.311,136.78,136.74,7.313]
[1723828851342,24.7921,136.82,136.73,7.3136]
[1723828851542,7.3114,136.78,136.73,7.3135]
[1723828851939,7.3116,136.77,136.73,7.3135]
[1723828852162,43.0661,136.82,136.68,18.2896]
[1723828852463,7.3116,136.77,136.72,7.3142]
[1723828852859,7.3116,136.77,136.73,7.3136]
[1723828853273,18.274,136.81,136.71,7.3142]
[1723828853465,7.3122,136.76,136.72,7.3141]
[1723828854247,7.3122,136.76,136.69,0.12549]
[1723828854248,7.3104,136.8,136.69,20.12549]
[1723828854471,36.5442,136.83,136.7,45.0]
[1723828854674,7.313,136.75,136.71,7.3146]
[1723828854876,18.2755,136.8,136.72,7.3141]
[1723828855176,18.2755,136.8,136.7,18.2875]
[1723828855383,44.1693111,136.83,136.67,24.3844]
[1723828855566,44.1693111,136.83,136.68,7.3163]
[1723828855567,7.3145,136.72,136.68,7.3163]
[1723828855881,18.2806,136.76,136.68,7.3163]
[1723828856181,18.2834,136.74,136.65,15.7421]
[1723828856484,18.2834,136.74,136.66,7.3169]
[1723828856673,7.3149,136.71,136.66,7.3169]
[1723828856989,36.5519,136.8,136.65,72.3316]
[1723828857152,7.3131,136.74,136.7,25.6028]
[1723828857351,36.5519,136.8,136.67,18.2916]
[1723828857553,18.2807,136.76,136.67,18.2916]
[1723828857980,7.3151,136.71,136.67,18.2916]
[1723828858359,7.3156,136.7,136.65,23.0596]
[1723828858563,7.3156,136.7,136.65,15.7421]
[1723828859386,7.3133,136.74,136.69,7.3156]
[1723828860078,7.3137,136.73,136.69,7.3156]
[1723828860265,18.2797,136.77,136.68,18.2904]
[1723828860468,36.5519,136.8,136.65,15.7421]
[1723828860776,7.3146,136.72,136.67,25.6084]
[1723828861096,36.5519,136.8,136.65,23.0597]
[1723828861097,7.3156,136.7,136.65,23.0597]
[1723828861296,18.2835,136.74,136.65,23.0599]
[1723828861481,7.3143,136.72,136.68,7.3163]
[1723828861801,54.8397,136.77,136.68,7.3163]
[1723828861802,7.314,136.73,136.68,7.3163]
[1723828862000,18.282,136.75,136.66,18.2931]
[1723828862173,36.5519,136.8,136.66,18.2931]
[1723828862498,7.313,136.75,136.71,7.3147]
[1723828862677,7.313,136.75,136.67,0.12549]
[1723828862678,7.313,136.75,136.7,25.6029]
[1723828863001,7.313,136.75,136.7,18.2878]
[1723828863201,7.313,136.75,136.71,45.0]
[1723828863391,7.3133,136.74,136.7,18.2878]
[1723828863771,7.3127,136.75,136.7,25.6027]
[1723828864073,7.3132,136.74,136.7,25.6027]
[1723828864488,18.2807,136.76,136.67,18.2913]
[1723828864692,7.3149,136.71,136.67,25.6081]
[1723828864890,18.2833,136.74,136.65,15.7421]
[1723828865501,18.2865,136.72,136.65,15.7421]
[1723828865793,43.0659,136.73,136.62,153.7818343]
[1723828865998,7.3188,136.64,136.62,153.7818343]
[1723828866200,30.0,136.7,136.62,153.7818343]
[1723828866201,7.319,136.63,136.62,153.7818343]
[1723828866582,18.2899,136.69,136.62,153.7818343]
[1723828867395,7.319,136.63,136.62,153.7818343]
[1723828868376,18.2916,136.68,136.62,153.7818343]
[1723828868798,7.3183,136.65,136.62,153.7818343]
[1723828869211,7.3175,136.66,136.62,153.7818343]
[1723828869407,30.0,136.7,136.62,153.7818343]
[1723828869807,7.3174,136.66,136.62,153.7818343]
[1723828870008,30.0,136.7,136.62,153.7818343]
[1723828870209,7.3186,136.64,136.62,153.7818343]
[1723828870412,7.319,136.63,136.62,153.7818343]
[1723828870601,30.0,136.7,136.62,153.7818343]
[1723828870602,7.3183,136.65,136.62,153.7818343]
[1723828871195,7.3185,136.64,136.62,153.7818343]
[1723828871500,18.2914,136.68,136.62,153.7818343]
[1723828872338,66.5789,136.7,136.62,153.7818343]
[1723828872339,7.319,136.63,136.62,153.7818343]
[1723828873208,18.2903,136.69,136.62,153.7818343]
[1723828873426,7.3175,136.66,136.62,153.7818343]
[1723828873727,7.318,136.65,136.62,153.7818343]
[1723828874091,18.2903,136.69,136.62,153.7818343]
[1723828874295,7.319,136.63,136.62,153.7818343]
[1723828875895,7.3186,136.64,136.62,153.7818343]
[1723828876101,7.3184,136.65,136.62,153.7818343]
[1723828876305,7.3178,136.66,136.62,161.1012343]
[1723828876636,48.2889,136.7,136.62,153.7818343]
[1723828876932,7.3165,136.68,136.62,153.7818343]
[1723828877108,24.7821,136.73,136.63,18.2968]
[1723828877428,7.3151,136.71,136.66,7.317]
[1723828877643,7.3153,136.7,136.66,7.317]
[1723828877932,7.3165,136.68,136.64,16.0478]
[1723828878137,7.317,136.67,136.64,16.0478]
[1723828878432,7.3174,136.66,136.64,16.0478]
[1723828878817,7.317,136.67,136.64,16.0478]
[1723828879041,36.5681,136.74,136.62,153.7818343]
[1723828879042,7.319,136.63,136.62,153.7818343]
[1723828879213,18.2915,136.68,136.62,153.7818343]
[1723828879536,36.5761,136.71,136.62,153.7818343]
[1723828879537,18.2876,136.71,136.62,153.7818343]
[1723828879858,7.3183,136.65,136.62,153.7818343]
[1723828880041,7.3174,136.66,136.62,153.7818343]
[1723828880398,18.29,136.69,136.62,153.7818343]
[1723828880819,7.3181,136.65,136.62,153.7818343]
[1723828881026,7.319,136.63,136.62,153.7818343]
[1723828882226,7.3217,136.58,136.57,159.52409736]
[1723828882623,7.3212,136.59,136.57,159.52409736]
[1723828882833,7.3217,136.58,136.57,159.52409736]
[1723828884045,37.3217,136.58,136.57,159.52409736]
[1723828885651,37.3217,136.58,136.52,165.26636041]
[1723828885652,7.3243,136.53,136.52,165.26636041]
[1723828886148,13.5333,136.53,136.52,11.66636041]
[1723828886859,7.327,136.48,136.47,171.00862347]
[1723828889662,13.5762,136.44,136.43,176.75088652]
[1723828890037,7.3292,136.44,136.43,176.75088652]
[1723828890950,7.3287,136.45,136.43,176.75088652]
[1723828891575,7.3276,136.47,136.43,176.75088652]
[1723828891863,18.3099,136.54,136.44,22.8902]
[1723828892069,7.326,136.5,136.45,70.6493]
[1723828892369,7.3255,136.51,136.46,7.3281]
[1723828892739,18.3061,136.57,136.46,0.4372868]
[1723828892942,30.0,136.58,136.46,45.4372868]
[1723828893136,30.0,136.58,136.46,18.7572868]
[1723828893355,18.308,136.56,136.46,18.7572868]
[1723828893547,18.308,136.56,136.46,20.22212254]
[1723828893773,7.3248,136.53,136.48,7.3265]
[1723828893972,30.0,136.58,136.49,7.326]
[1723828893973,7.3239,136.54,136.49,7.326]
[1723828894161,7.3226,136.57,136.51,7.325]
[1723828894377,18.3032,136.59,136.5,25.6398]
[1723828894573,7.3234,136.55,136.5,25.6398]
[1723828894774,7.3229,136.56,136.5,18.314]
[1723828895493,7.62412417,136.61,136.53,6.5365]
[1723828895801,15.7624,136.7,136.53,6.5365]
[1723828895802,18.2913,136.68,136.57,18.3055]
[1723828895970,7.62543381,136.67,136.57,18.3055]
[1723828896401,7.3189,136.64,136.59,7.3211]
[1723828896564,7.3189,136.64,136.58,17.88099748]
[1723828896772,7.3201,136.61,136.58,16.4173]
[1723828896969,36.5875,136.66,136.58,16.4173]
[1723828897189,7.3211,136.59,136.58,16.4173]
[1723828897497,7.3227,136.57,136.53,6.5365]
[1723828897708,43.1549,136.66,136.53,6.5365]
[1723828897709,7.3215,136.59,136.53,24.8462]
[1723828897991,7.3212,136.59,136.55,7.3232]
[1723828898299,7.3206,136.6,136.55,7.3228]
[1723828898489,7.3214,136.59,136.54,7.3237]
[1723828898885,7.3214,136.59,136.55,7.3232]
[1723828899086,18.2987,136.63,136.53,24.8462]
[1723828899391,18.2987,136.63,136.54,18.3088]
[1723828899597,7.62460947,136.68,136.54,45.0]
[1723828899762,7.62460947,136.68,136.58,18.3034]
[1723828900496,7.3183,136.65,136.6,7.3205]
[1723828900666,7.319,136.63,136.58,25.6248]
[1723828900868,7.62475725,136.7,136.63,7.319]
[1723828901084,7.62475725,136.7,136.59,16.5205]
[1723828901085,6.5251,136.77,136.6,18.301]
[1723828901290,7.62427332,136.73,136.6,25.6214]
[1723828901479,9.2246735,136.77,136.62,7.3194]
[1723828901664,9.2246735,136.77,136.61,7.32]
[1723828901993,9.2246735,136.77,136.63,7.3188]
[1723828902200,7.3159,136.69,136.64,52.3184]
[1723828902495,7.3158,136.69,136.62,25.44533069]
[1723828902678,18.2876,136.71,136.62,24.8909]
[1723828902884,7.317,136.67,136.62,24.8909]
[1723828903074,18.2876,136.71,136.62,24.8909]
[1723828903269,7.6238483,136.76,136.59,34.8227]
[1723828903270,18.2903,136.69,136.59,34.8227]
[1723828903469,7.6238483,136.76,136.59,16.5205]
[1723828903673,7.3202,136.61,136.59,16.5205]
[1723828903877,18.2955,136.65,136.56,18.3063]
[1723828904205,7.3207,136.6,136.54,21.7372]
[1723828904395,7.3202,136.61,136.56,7.3227]
[1723828904604,18.2982,136.63,136.54,15.1445]
[1723828904906,6.6412,136.68,136.55,36.6159]
[1723828905209,7.3189,136.64,136.57,18.3049]
[1723828905369,7.3192,136.63,136.58,7.3216]
[1723828905871,7.3192,136.63,136.57,18.3049]
[1723828906076,7.3192,136.63,136.58,45.0]
[1723828906523,6.6412,136.68,136.59,18.3019]
[1723828906817,7.3185,136.64,136.59,25.6229]
[1723828907187,18.2899,136.69,136.6,45.0]
[1723828907390,7.317,136.67,136.62,7.3193]
[1723828907611,40.1509,136.72,136.62,7.3193]
[1723828907612,7.3175,136.66,136.62,7.3193]
[1723828908021,7.3167,136.68,136.63,7.3189]
[1723828908199,24.419,136.72,136.62,7.3194]
[1723828908398,24.419,136.72,136.61,18.2995]
[1723828908399,7.3169,136.67,136.63,7.3188]
[1723828908928,7.3158,136.69,136.64,7.3183]
[1723828909125,7.3165,136.68,136.63,25.6159]
[1723828909499,18.2862,136.72,136.6,63.3012]
[1723828909704,7.3178,136.66,136.61,7.3196]
[1723828910201,18.2887,136.7,136.6,25.6218]
[1723828910924,14.1968483,136.76,136.58,6.2443]
[1723828911096,7.3205,136.61,136.58,6.2443]
[1723828911296,45.0,136.75,136.58,6.2443]
[1723828911522,7.3211,136.59,136.55,25.6309]
[1723828911835,18.2976,136.63,136.54,21.2488]
[1723828911836,7.3217,136.58,136.54,21.2488]
[1723828912004,7.3213,136.59,136.54,28.5722]
[1723828912193,18.2976,136.63,136.54,21.2488]
[1723828912194,7.3217,136.58,136.54,21.2488]
[1723828912395,7.3211,136.6,136.55,7.3229]
[1723828912642,7.3211,136.6,136.55,7.3231]
[1723828913433,7.3211,136.6,136.56,45.0]
[1723828913597,7.3211,136.6,136.55,7.3231]
[1723828914194,7.3211,136.6,136.56,52.3227]
[1723828914399,7.3186,136.64,136.56,45.0]
[1723828914633,7.3185,136.64,136.6,7.3202]
[1723828914841,7.3179,136.66,136.61,7.3197]
[1723828915030,18.2904,136.69,136.61,7.3197]
[1723828915208,7.3183,136.65,136.6,25.6214]
[1723828915407,7.3181,136.65,136.61,7.32]
[1723828915717,7.61990695,136.7,136.62,63.2983]
[1723828915926,18.2863,136.72,136.62,63.2983]
[1723828916439,18.2863,136.72,136.62,70.6177]
[1723828916608,7.3175,136.66,136.62,70.6177]
[1723828916807,18.2886,136.7,136.59,18.3021]
[1723828917010,7.3183,136.65,136.6,7.3202]
[1723828917241,7.3183,136.65,136.61,45.0]
[1723828917544,25.90482484,136.73,136.61,45.0]
[1723828917699,7.3161,136.69,136.63,18.2969]
[1723828917900,7.3161,136.69,136.64,45.0]
[1723828918123,18.2809,136.76,136.65,18.2944]
[1723828918324,7.3151,136.71,136.66,52.3172]
[1723828918506,18.2833,136.74,136.65,25.6122]
[1723828918905,7.3158,136.69,136.65,18.2944]
[1723828919108,7.3158,136.69,136.65,25.6122]
[1723828919516,7.3167,136.68,136.64,45.0]
[1723828919840,7.3167,136.68,136.63,52.3185]
[1723828920045,18.286,136.72,136.64,18.2954]
[1723828920235,7.3151,136.71,136.66,7.3173]
[1723828920417,7.3153,136.7,136.65,7.3179]
[1723828920735,7.3158,136.69,136.65,7.3179]
[1723828920954,7.3153,136.7,136.66,7.3173]
[1723828921116,7.3153,136.7,136.65,7.3178]
[1723828921318,7.3153,136.7,136.66,45.0]
[1723828921713,7.3151,136.71,136.66,52.317]
[1723828922050,18.285,136.73,136.64,18.2954]
[1723828922218,7.3165,136.68,136.62,22.9317]
[1723828922420,18.2837,136.74,136.65,7.3178]
[1723828922732,18.2837,136.74,136.63,18.2972]
[1723828923036,7.3162,136.69,136.64,7.3183]
[1723828923216,7.3178,136.66,136.62,30.251]
[1723828923639,7.317,136.67,136.63,7.319]
[1723828923814,7.3162,136.69,136.62,22.9317]
[1723828924212,7.3164,136.68,136.64,25.6141]
[1723828925017,7.3171,136.67,136.65,45.0]
[1723828925213,44.17823549,136.76,136.64,45.0]
[1723828925418,44.17823549,136.76,136.63,45.0]
[1723828925619,7.3156,136.7,136.66,7.3172]
[1723828925832,7.3149,136.71,136.67,7.3167]
[1723828926120,18.2838,136.74,136.65,25.6121]
[1723828926334,7.3158,136.69,136.65,25.6121]
[1723828927223,7.3154,136.7,136.65,25.6121]
[1723828928151,18.2874,136.71,136.63,7.3185]
[1723828928446,7.3161,136.69,136.63,18.297]
[1723828928647,18.2829,136.74,136.63,18.297]
[1723828928648,18.2829,136.74,136.65,18.2945]
[1723828928821,18.2829,136.74,136.65,19.75727061]
[1723828929150,7.3156,136.7,136.66,7.3172]
[1723828929627,18.2829,136.74,136.65,18.2945]
[1723828929628,7.3158,136.69,136.65,18.2945]
[1723828929829,7.3158,136.69,136.65,25.6124]
[1723828930225,7.3169,136.67,136.63,7.3189]
[1723828930434,7.3169,136.67,136.62,41.2296]
[1723828930630,7.3164,136.68,136.62,41.2296]
[1723828930832,7.317,136.67,136.62,41.2296]
[1723828931041,7.3178,136.66,136.62,41.2296]
[1723828931267,7.3178,136.66,136.62,48.5491]
[1723828932045,7.3169,136.67,136.63,7.3189]
[1723828932220,7.3175,136.66,136.62,41.2296]
[1723828932652,7.3175,136.66,136.62,48.5488]
[1723828933244,7.3181,136.65,136.62,41.2296]
[1723828933454,42.9793,136.7,136.58,22.8842]
[1723828933620,18.2949,136.65,136.58,22.8842]
[1723828933828,7.3204,136.61,136.58,22.8842]
[1723828934031,7.3207,136.6,136.56,25.6291]
[1723828934355,7.3212,136.59,136.56,18.3065]
[1723828934538,7.3212,136.59,136.54,28.8433]
[1723828934742,7.3212,136.59,136.55,7.3232]
[1723828936533,7.3208,136.6,136.56,7.3227]
[1723828936757,18.2979,136.63,136.56,7.3227]
[1723828937058,18.2979,136.63,136.54,21.5196]
[1723828937235,7.3207,136.6,136.55,8.21159771]
[1723828937441,7.3207,136.6,136.55,7.3229]
[1723828937642,6.5305,136.73,136.61,6.1497]
[1723828937868,6.5305,136.78,136.69,7.3158]
[1723828938157,6.5305,136.78,136.67,19.75412026]
[1723828938372,6.5305,136.78,136.67,18.2914]
[1723828938373,24.8087,136.78,136.67,18.2914]
[1723828938518,6.5305,136.78,136.67,18.2914]
[1723828938725,6.5305,136.78,136.68,45.47831534]
[1723828938942,7.3142,136.72,136.63,18.2965]
[1723828939143,7.3142,136.72,136.64,65.0]
[1723828939322,7.3138,136.73,136.64,65.0]
[1723828939646,6.5305,136.78,136.64,65.0]
[1723828939647,7.3147,136.71,136.64,7.3179]
[1723828940640,7.3153,136.7,136.64,7.3179]
[1723828940839,7.3153,136.7,136.6,15.5565]
[1723828940840,7.3174,136.66,136.6,15.5565]
[1723828941079,6.2254,136.7,136.57,6.1962]
[1723828941227,45.0,136.69,136.56,15.877]
[1723828941642,7.3201,136.61,136.56,15.877]
[1723828941947,18.2971,136.64,136.52,15.877]
[1723828942127,6.4941,136.63,136.52,15.877]
[1723828942333,23.1016,136.63,136.51,18.3129]
[1723828942529,7.3228,136.56,136.49,14.3624868]
[1723828942754,23.1016,136.63,136.49,7.0364868]
[1723828942951,7.3201,136.61,136.53,18.3106]
[1723828943166,7.3206,136.6,136.53,25.6347]
[1723828943453,6.4941,136.63,136.54,7.3238]
[1723828943628,6.4941,136.63,136.53,18.3106]
[1723828943858,7.319,136.63,136.56,7.3227]
[1723828944064,7.3195,136.62,136.56,7.3227]
[1723828944260,24.4959,136.7,136.57,45.0]
[1723828944457,24.4959,136.7,136.59,7.3211]
[1723828944458,7.3179,136.65,136.59,7.3211]
[1723828944663,7.3179,136.65,136.59,18.3026]
[1723828944859,7.3186,136.64,136.59,18.3026]
[1723828945280,6.2068,136.7,136.59,18.3026]
[1723828945462,7.3156,136.7,136.63,7.3188]
[1723828945667,18.287,136.71,136.59,18.3029]
[1723828945990,18.287,136.71,136.61,7.32]
[1723828945991,7.3173,136.67,136.61,7.32]
[1723828946187,7.3163,136.68,136.62,7.3195]
[1723828946360,7.3169,136.67,136.61,7.32]
[1723828946683,7.3169,136.67,136.59,18.3029]
[1723828946891,7.3169,136.67,136.6,45.0]
[1723828947070,7.3164,136.68,136.62,7.3195]
[1723828947396,7.3169,136.67,136.62,7.3195]
[1723828947779,7.3163,136.68,136.62,8.25681505]
[1723828947979,7.3163,136.68,136.62,7.3195]
[1723828948311,6.502,136.74,136.6,65.0]
[1723828948493,7.62081793,136.72,136.68,7.3163]
[1723828948815,18.2788,136.77,136.68,7.3163]
[1723828948816,7.3136,136.74,136.68,7.3163]
[1723828948985,7.62264318,136.74,136.68,0.93731971]
[1723828949185,7.62264318,136.74,136.7,7.3152]
[1723828949405,7.3121,136.76,136.71,0.93743721]
[1723828949717,13.63339811,136.79,136.71,8.25213721]
[1723828949918,13.63339811,136.79,136.69,18.2884]
[1723828950214,7.3121,136.76,136.7,7.3152]
[1723828950593,7.3116,136.77,136.71,7.3146]
[1723828950793,7.3122,136.76,136.71,7.3146]
[1723828950989,7.3116,136.77,136.71,7.3146]
[1723828951193,7.3107,136.79,136.73,7.3131]
[1723828951782,7.61958715,136.82,136.77,7.3115]
[1723828952008,0.4599852,136.85,136.73,20.0]
[1723828952208,0.4599852,136.85,136.74,65.25098]
[1723828952393,0.4599852,136.85,136.75,65.03]
[1723828952594,0.4599852,136.85,136.79,18.2751]
[1723828952791,0.4599852,136.85,136.8,45.0]
[1723828953005,0.4599852,136.85,136.81,7.3092]
[1723828953195,7.3068,136.86,136.81,7.3092]
[1723828953395,7.3063,136.87,136.82,7.3088]
[1723828953788,7.3063,136.87,136.81,7.3093]
[1723828954183,7.3071,136.86,136.8,7.3099]
[1723828954497,37.3306218,136.9,136.71,6.084]
[1723828954693,7.3105,136.79,136.72,18.2847]
[1723828955106,18.2687,136.85,136.72,18.2847]
[1723828955312,18.2718,136.83,136.72,18.2847]
[1723828955626,18.2718,136.83,136.72,25.5985]
[1723828955785,6.6382,136.83,136.7,35.9905]
[1723828955985,6.6382,136.83,136.74,7.313]
[1723828956213,6.6382,136.83,136.73,25.5969]
[1723828956214,7.311,136.78,136.73,25.5969]
[1723828956407,6.6382,136.83,136.73,18.2834]
[1723828956714,7.3079,136.84,136.74,1.0830903]
[1723828956916,7.3072,136.85,136.75,6.4867]
[1723828957118,7.3071,136.86,136.8,7.3095]
[1723828957409,7.3074,136.85,136.79,25.5856]
[1723828957584,7.3074,136.85,136.8,52.3098]
[1723828957986,7.3079,136.84,136.79,25.5857]
[1723828958308,7.3078,136.84,136.79,18.2753]
[1723828958616,7.3073,136.85,136.79,25.5852]
[1723828958917,7.3073,136.85,136.76,20.0]
[1723828958918,0.8068218,136.9,136.81,18.2728]
[1723828959117,7.3067,136.86,136.81,25.5821]
[1723828959682,7.3067,136.86,136.81,18.2728]
[1723828959883,7.3073,136.85,136.81,18.2728]
[1723828960391,0.8068218,136.9,136.8,52.3097]
[1723828960392,7.3068,136.86,136.8,45.0]
[1723828960706,7.3063,136.87,136.8,78.4426]
[1723828961022,7.3063,136.87,136.81,0.12549]
[1723828961200,7.3063,136.87,136.8,78.4426]
[1723828961519,0.8068218,136.9,136.8,40.7524]
[1723828961705,7.3077,136.85,136.8,33.4426]
[1723828962012,0.8068218,136.9,136.78,7.3105]
[1723828962013,18.266,136.87,136.78,7.3105]
[1723828962218,18.266,136.87,136.77,18.2785]
[1723828962536,7.3083,136.83,136.78,7.3108]
[1723828962824,7.3079,136.84,136.79,7.3103]
[1723828963716,7.3068,136.86,136.8,45.0]
[1723828964113,7.3072,136.85,136.8,45.0]